[Event "Titled Tuesday Blitz July 11 Early 2023"]
[White "Goltseva, Ekaterina"]
[Black "Romero Ruscalleda, Josep"]
[WhiteFideId "24173770"]
[BlackFideId "2231859"]
[WhiteElo "2532"]
[BlackElo "2418"]
[Result "0-1"]
[Round "10"]
[TimeControl "180+2"]
[Date "2023.07.11"]
[WhiteClock "0:00:00"]
[BlackClock "0:00:19"]
[Board "88"]

1. Nf3 {[%clk 0:02:43]}  g6 {[%clk 0:03:00]} 2. b3 {[%clk 0:02:40]}  Bg7 {[%clk 0:03:01]} 3. d4 {[%clk 0:02:40]}  c5 {[%clk 0:03:00]} 4. e3 {[%clk 0:02:38]}  Nc6 {[%clk 0:03:00]} 5. Bb2 {[%clk 0:02:39]}  cxd4 {[%clk 0:03:00]} 6. exd4 {[%clk 0:02:39]}  Nf6 {[%clk 0:02:59]} 7. Bd3 {[%clk 0:02:38]}  d6 {[%clk 0:02:59]} 8. O-O {[%clk 0:02:38]}  O-O {[%clk 0:02:58]} 9. Nbd2 {[%clk 0:02:39]}  Bd7 {[%clk 0:02:55]} 10. c4 {[%clk 0:02:39]}  Rc8 {[%clk 0:02:54]} 11. Rc1 {[%clk 0:02:39]}  Qa5 {[%clk 0:02:49]} 12. Bb1 {[%clk 0:02:38]}  Qh5 {[%clk 0:02:46]} 13. h3 {[%clk 0:02:38]}  Bh6 {[%clk 0:02:40]} 14. Rc3 {[%clk 0:02:27]}  d5 {[%clk 0:02:27]} 15. Re1 {[%clk 0:02:14]}  Rfe8 {[%clk 0:02:20]} 16. Nf1 {[%clk 0:02:14]}  Bf4 {[%clk 0:02:07]} 17. Bc1 {[%clk 0:02:06]}  Bb8 {[%clk 0:01:59]} 18. Ne3 {[%clk 0:01:53]}  dxc4 {[%clk 0:01:38]} 19. bxc4 {[%clk 0:01:54]}  e5 {[%clk 0:01:27]} 20. d5 {[%clk 0:01:33]}  Nd4 {[%clk 0:01:25]} 21. Nf1 {[%clk 0:01:31]}  Nxf3+ {[%clk 0:01:19]} 22. Rxf3 {[%clk 0:01:32]}  Kg7 {[%clk 0:01:00]} 23. Ng3 {[%clk 0:00:31]}  Qh4 {[%clk 0:00:57]} 24. Ne4 {[%clk 0:00:15]}  Nxe4 {[%clk 0:00:40]} 25. Rxe4 {[%clk 0:00:16]}  Qe7 {[%clk 0:00:39]} 26. Ba3 {[%clk 0:00:10]}  Bd6 {[%clk 0:00:38]} 27. Bb2 {[%clk 0:00:09]}  f5 {[%clk 0:00:35]} 28. Re1 {[%clk 0:00:08]}  Kg8 {[%clk 0:00:35]} 29. Rfe3 {[%clk 0:00:07]}  e4 {[%clk 0:00:30]} 30. Qd4 {[%clk 0:00:04]}  Be5 {[%clk 0:00:27]} 31. Qxe5 {[%clk 0:00:05]}  Qxe5 {[%clk 0:00:27]} 32. Bxe5 {[%clk 0:00:06]}  Rxe5 {[%clk 0:00:27]} 33. f3 {[%clk 0:00:06]}  Rxc4 {[%clk 0:00:26]} 34. fxe4 {[%clk 0:00:07]}  fxe4 {[%clk 0:00:26]} 35. Rxe4 {[%clk 0:00:07]}  Rcxe4 {[%clk 0:00:19]} 36. Rxe4 {[%clk 0:00:05]}  Rxe4 {[%clk 0:00:20]} 37. Bxe4 {[%clk 0:00:05]}  Kf7 {[%clk 0:00:20]} 38. Kf2 {[%clk 0:00:05]}  Kf6 {[%clk 0:00:20]} 39. Ke3 {[%clk 0:00:06]}  Ke5 {[%clk 0:00:21]} 40. Bf3 {[%clk 0:00:06]}  b6 {[%clk 0:00:21]} 41. Kd3 {[%clk 0:00:05]}  Bb5+ {[%clk 0:00:20]} 42. Kc3 {[%clk 0:00:06]}  Bf1 {[%clk 0:00:19]} 43. Kb4 {[%clk 0:00:06]}  Kd6 {[%clk 0:00:19]} 44. a4 {[%clk 0:00:05]}  a6 {[%clk 0:00:19]} 45. a5 {[%clk 0:00:04]}  bxa5+ {[%clk 0:00:18]} 46. Kxa5 {[%clk 0:00:05]}  Kc5 {[%clk 0:00:19]} 47. Be4 {[%clk 0:00:05]}  Bc4 {[%clk 0:00:18]} 48. Bf3 {[%clk 0:00:03]}  Bxd5 {[%clk 0:00:17]} 49. Kxa6 {[%clk 0:00:02]}  Bxf3 {[%clk 0:00:16]} 50. gxf3 {[%clk 0:00:03]}  Kd4 {[%clk 0:00:17]} 51. Kb6 {[%clk 0:00:04]}  Ke3 {[%clk 0:00:17]} 52. Kc6 {[%clk 0:00:05]}  Kxf3 {[%clk 0:00:18]} 53. Kd6 {[%clk 0:00:06]}  Kg3 {[%clk 0:00:18]} 54. Ke6 {[%clk 0:00:06]}  Kxh3 {[%clk 0:00:19]} 55. Kf6 {[%clk 0:00:07]}  Kg4 {[%clk 0:00:19]} 56. Kg7 {[%clk 0:00:08]}  h5 {[%clk 0:00:19]} 57. Kf7 {[%clk 0:00:00]}  h4 {[%clk 0:00:19]} 0-1


[Site "https://www.chess.com"]

[Event "Titled Tuesday Blitz July 11 Early 2023"]
[White "Haitin, Ilja"]
[Black "Tokman, Ariel"]
[WhiteFideId "4501764"]
[BlackFideId "117420"]
[WhiteElo "2385"]
[BlackElo "2530"]
[Result "1-0"]
[Round "10"]
[TimeControl "180+2"]
[Date "2023.07.11"]
[WhiteClock "0:00:05"]
[BlackClock "0:00:00"]
[Board "89"]

1. Nf3 {[%clk 0:02:57]}  g6 {[%clk 0:02:56]} 2. e4 {[%clk 0:02:56]}  Bg7 {[%clk 0:02:57]} 3. d4 {[%clk 0:02:56]}  d6 {[%clk 0:02:57]} 4. c3 {[%clk 0:02:56]}  c6 {[%clk 0:02:55]} 5. Bd3 {[%clk 0:02:55]}  Nd7 {[%clk 0:02:56]} 6. O-O {[%clk 0:02:55]}  e5 {[%clk 0:02:55]} 7. Be3 {[%clk 0:02:54]}  Ngf6 {[%clk 0:02:53]} 8. h3 {[%clk 0:02:55]}  O-O {[%clk 0:02:52]} 9. Nbd2 {[%clk 0:02:55]}  Re8 {[%clk 0:02:53]} 10. Re1 {[%clk 0:02:54]}  Qc7 {[%clk 0:02:52]} 11. a4 {[%clk 0:02:51]}  Nf8 {[%clk 0:02:49]} 12. dxe5 {[%clk 0:02:47]}  dxe5 {[%clk 0:02:48]} 13. Nc4 {[%clk 0:02:47]}  Nh5 {[%clk 0:02:43]} 14. Kh2 {[%clk 0:02:44]}  Rd8 {[%clk 0:02:40]} 15. Qc2 {[%clk 0:02:42]}  Nf4 {[%clk 0:02:38]} 16. Bf1 {[%clk 0:02:41]}  b6 {[%clk 0:02:11]} 17. g3 {[%clk 0:02:40]}  N4e6 {[%clk 0:02:04]} 18. Red1 {[%clk 0:02:36]}  Bb7 {[%clk 0:02:04]} 19. a5 {[%clk 0:02:35]}  b5 {[%clk 0:01:57]} 20. a6 {[%clk 0:02:34]}  Bc8 {[%clk 0:01:37]} 21. Rxd8 {[%clk 0:02:29]}  Nxd8 {[%clk 0:01:37]} 22. Ncd2 {[%clk 0:02:23]}  Nfe6 {[%clk 0:01:24]} 23. Nb3 {[%clk 0:02:21]}  Bd7 {[%clk 0:01:12]} 24. Rd1 {[%clk 0:02:17]}  Be8 {[%clk 0:01:11]} 25. Nc5 {[%clk 0:02:14]}  Qc8 {[%clk 0:01:03]} 26. c4 {[%clk 0:01:14]}  Nxc5 {[%clk 0:00:58]} 27. Bxc5 {[%clk 0:01:14]}  Ne6 {[%clk 0:00:59]} 28. Bd6 {[%clk 0:01:13]}  Qxa6 {[%clk 0:00:45]} 29. cxb5 {[%clk 0:01:05]}  cxb5 {[%clk 0:00:44]} 30. Bxe5 {[%clk 0:01:05]}  Qb6 {[%clk 0:00:31]} 31. Bxg7 {[%clk 0:01:04]}  Kxg7 {[%clk 0:00:32]} 32. Qc3+ {[%clk 0:00:59]}  Kg8 {[%clk 0:00:32]} 33. Kg2 {[%clk 0:00:59]}  a5 {[%clk 0:00:30]} 34. Ne5 {[%clk 0:00:51]}  h5 {[%clk 0:00:23]} 35. Qb3 {[%clk 0:00:30]}  Kg7 {[%clk 0:00:10]} 36. h4 {[%clk 0:00:26]}  Rd8 {[%clk 0:00:08]} 37. Rxd8 {[%clk 0:00:25]}  Nxd8 {[%clk 0:00:06]} 38. Nf3 {[%clk 0:00:22]}  Ne6 {[%clk 0:00:05]} 39. Qc3+ {[%clk 0:00:22]}  f6 {[%clk 0:00:03]} 40. e5 {[%clk 0:00:21]}  f5 {[%clk 0:00:03]} 41. Ng5 {[%clk 0:00:19]}  Bf7 {[%clk 0:00:02]} 42. Nxe6+ {[%clk 0:00:17]}  Bxe6 {[%clk 0:00:02]} 43. Be2 {[%clk 0:00:15]}  b4 {[%clk 0:00:03]} 44. Qd3 {[%clk 0:00:14]}  a4 {[%clk 0:00:03]} 45. Qd2 {[%clk 0:00:07]}  Qc5 {[%clk 0:00:03]} 46. Qg5 {[%clk 0:00:06]}  Qc6+ {[%clk 0:00:02]} 47. Bf3 {[%clk 0:00:06]}  Qc7 {[%clk 0:00:00]} 48. Qf6+ {[%clk 0:00:05]} 1-0


[Site "https://www.chess.com"]

[Event "Titled Tuesday Blitz July 11 Early 2023"]
[White "Turzo, Attila"]
[Black "Atanasov, Radislav"]
[WhiteFideId "704954"]
[BlackFideId "2901471"]
[WhiteElo "2521"]
[BlackElo "2238"]
[Result "0-1"]
[Round "10"]
[TimeControl "180+2"]
[Date "2023.07.11"]
[WhiteClock "0:01:04"]
[BlackClock "0:00:36"]
[Board "91"]

1. d4 {[%clk 0:03:00]}  Nf6 {[%clk 0:02:59]} 2. c4 {[%clk 0:03:01]}  c5 {[%clk 0:02:59]} 3. d5 {[%clk 0:03:00]}  e6 {[%clk 0:03:00]} 4. g3 {[%clk 0:02:59]}  exd5 {[%clk 0:03:01]} 5. cxd5 {[%clk 0:03:00]}  d6 {[%clk 0:03:01]} 6. Bg2 {[%clk 0:03:00]}  g6 {[%clk 0:03:02]} 7. Nc3 {[%clk 0:03:01]}  Bg7 {[%clk 0:03:02]} 8. Nf3 {[%clk 0:03:01]}  O-O {[%clk 0:03:03]} 9. O-O {[%clk 0:03:02]}  Re8 {[%clk 0:03:03]} 10. Bf4 {[%clk 0:03:02]}  a6 {[%clk 0:03:03]} 11. a4 {[%clk 0:03:02]}  Ne4 {[%clk 0:03:03]} 12. Nxe4 {[%clk 0:02:58]}  Rxe4 {[%clk 0:03:03]} 13. Qc2 {[%clk 0:02:55]}  Rxf4 {[%clk 0:02:46]} 14. gxf4 {[%clk 0:02:55]}  Nd7 {[%clk 0:02:44]} 15. e4 {[%clk 0:02:35]}  Nf6 {[%clk 0:02:41]} 16. Rad1 {[%clk 0:02:30]}  Nh5 {[%clk 0:02:37]} 17. Qd2 {[%clk 0:02:23]}  Bd7 {[%clk 0:02:18]} 18. e5 {[%clk 0:02:22]}  Bxa4 {[%clk 0:02:13]} 19. Ra1 {[%clk 0:02:18]}  Bb5 {[%clk 0:01:46]} 20. Rfe1 {[%clk 0:02:18]}  Bh6 {[%clk 0:01:46]} 21. Ng5 {[%clk 0:02:09]}  dxe5 {[%clk 0:01:32]} 22. Rxe5 {[%clk 0:02:09]}  Qf6 {[%clk 0:01:33]} 23. Ne4 {[%clk 0:02:02]}  Qh4 {[%clk 0:01:02]} 24. Rxh5 {[%clk 0:01:40]}  gxh5 {[%clk 0:00:53]} 25. Ng5 {[%clk 0:01:34]}  Re8 {[%clk 0:00:40]} 26. d6 {[%clk 0:01:24]}  Re2 {[%clk 0:00:39]} 27. Qd5 {[%clk 0:01:09]}  Qxf2+ {[%clk 0:00:36]} 28. Kh1 {[%clk 0:01:09]}  Re1+ {[%clk 0:00:36]} 29. Rxe1 {[%clk 0:01:04]}  Qxe1+ {[%clk 0:00:36]} 0-1


[Site "https://www.chess.com"]

[Event "Titled Tuesday Blitz July 11 Early 2023"]
[White "feuervogel1000000"]
[Black "Ishowmoves57"]
[WhiteElo "2518"]
[BlackElo "2172"]
[Result "1-0"]
[Round "10"]
[TimeControl "180+2"]
[Date "2023.07.11"]
[WhiteClock "0:02:16"]
[BlackClock "0:00:41"]
[Board "92"]

1. d4 {[%clk 0:03:00]}  Nf6 {[%clk 0:02:55]} 2. c4 {[%clk 0:02:59]}  e6 {[%clk 0:02:52]} 3. Nc3 {[%clk 0:02:58]}  Bb4 {[%clk 0:02:52]} 4. Qc2 {[%clk 0:02:58]}  d5 {[%clk 0:02:51]} 5. a3 {[%clk 0:02:57]}  Bxc3+ {[%clk 0:02:51]} 6. Qxc3 {[%clk 0:02:58]}  dxc4 {[%clk 0:02:50]} 7. Qxc4 {[%clk 0:02:56]}  b6 {[%clk 0:02:49]} 8. Nf3 {[%clk 0:02:55]}  Ba6 {[%clk 0:02:48]} 9. Qa4+ {[%clk 0:02:54]}  Qd7 {[%clk 0:02:43]} 10. Qc2 {[%clk 0:02:54]}  Qd8 {[%clk 0:02:18]} 11. Bg5 {[%clk 0:02:50]}  Nbd7 {[%clk 0:02:18]} 12. Ne5 {[%clk 0:02:42]}  c5 {[%clk 0:02:05]} 13. Bxf6 {[%clk 0:02:37]}  gxf6 {[%clk 0:02:03]} 14. Nxd7 {[%clk 0:02:35]}  Qxd7 {[%clk 0:02:04]} 15. dxc5 {[%clk 0:02:35]}  bxc5 {[%clk 0:01:58]} 16. Qxc5 {[%clk 0:02:35]}  Rc8 {[%clk 0:01:58]} 17. Qa5 {[%clk 0:02:32]}  Qc6 {[%clk 0:01:17]} 18. Qb4 {[%clk 0:02:26]}  Rb8 {[%clk 0:01:14]} 19. Qxb8+ {[%clk 0:02:25]}  Ke7 {[%clk 0:01:07]} 20. Qxh8 {[%clk 0:02:21]}  Qb5 {[%clk 0:00:49]} 21. Rd1 {[%clk 0:02:17]}  Qa5+ {[%clk 0:00:42]} 22. b4 {[%clk 0:02:16]}  Qxa3 {[%clk 0:00:41]} 23. Qd8# {[%clk 0:02:16]} 1-0


[Site "https://www.chess.com"]

[Event "Titled Tuesday Blitz July 11 Early 2023"]
[White "Kim, Sergey"]
[Black "Fule, Simon"]
[WhiteFideId "13700570"]
[BlackFideId "787515"]
[WhiteElo "2554"]
[BlackElo "2411"]
[Result "1/2-1/2"]
[Round "10"]
[TimeControl "180+2"]
[Date "2023.07.11"]
[WhiteClock "0:01:29"]
[BlackClock "0:00:06"]
[Board "97"]

1. d4 {[%clk 0:03:00]}  Nf6 {[%clk 0:02:59]} 2. c4 {[%clk 0:03:01]}  d6 {[%clk 0:02:59]} 3. Nc3 {[%clk 0:03:01]}  g6 {[%clk 0:02:58]} 4. e4 {[%clk 0:03:01]}  Bg7 {[%clk 0:02:58]} 5. Nge2 {[%clk 0:03:02]}  O-O {[%clk 0:02:57]} 6. Ng3 {[%clk 0:03:02]}  e5 {[%clk 0:02:56]} 7. d5 {[%clk 0:03:02]}  a5 {[%clk 0:02:55]} 8. Be2 {[%clk 0:03:02]}  Na6 {[%clk 0:02:55]} 9. O-O {[%clk 0:03:02]}  Nc5 {[%clk 0:02:55]} 10. Be3 {[%clk 0:03:02]}  b6 {[%clk 0:02:53]} 11. h3 {[%clk 0:02:59]}  Nfd7 {[%clk 0:02:41]} 12. Qd2 {[%clk 0:02:59]}  f5 {[%clk 0:02:33]} 13. exf5 {[%clk 0:02:45]}  gxf5 {[%clk 0:02:34]} 14. f4 {[%clk 0:02:45]}  e4 {[%clk 0:02:34]} 15. Nh5 {[%clk 0:02:43]}  Bh8 {[%clk 0:02:19]} 16. Nb5 {[%clk 0:02:43]}  Nf6 {[%clk 0:02:15]} 17. Nd4 {[%clk 0:02:40]}  Nxh5 {[%clk 0:02:01]} 18. Bxh5 {[%clk 0:02:39]}  Bd7 {[%clk 0:01:55]} 19. Be2 {[%clk 0:02:33]}  Qe7 {[%clk 0:01:35]} 20. Kh2 {[%clk 0:02:33]}  Rf6 {[%clk 0:01:31]} 21. Rg1 {[%clk 0:02:27]}  Rg6 {[%clk 0:01:26]} 22. Raf1 {[%clk 0:02:22]}  Bf6 {[%clk 0:01:21]} 23. g4 {[%clk 0:02:06]}  fxg4 {[%clk 0:01:17]} 24. f5 {[%clk 0:02:06]}  g3+ {[%clk 0:01:12]} 25. Kh1 {[%clk 0:01:58]}  g2+ {[%clk 0:00:52]} 26. Rxg2 {[%clk 0:01:57]}  Rxg2 {[%clk 0:00:53]} 27. Kxg2 {[%clk 0:01:57]}  Kh8 {[%clk 0:00:53]} 28. Ne6 {[%clk 0:01:50]}  Rg8+ {[%clk 0:00:43]} 29. Kh1 {[%clk 0:01:50]}  Bxe6 {[%clk 0:00:23]} 30. fxe6 {[%clk 0:01:48]}  Be5 {[%clk 0:00:20]} 31. Bg4 {[%clk 0:01:40]}  Rxg4 {[%clk 0:00:12]} 32. hxg4 {[%clk 0:01:32]}  Qh4+ {[%clk 0:00:12]} 33. Kg1 {[%clk 0:01:31]}  Qg3+ {[%clk 0:00:12]} 34. Kh1 {[%clk 0:01:30]}  Qh3+ {[%clk 0:00:10]} 35. Kg1 {[%clk 0:01:30]}  Qg3+ {[%clk 0:00:05]} 36. Kh1 {[%clk 0:01:29]}  Qh3+ {[%clk 0:00:05]} 37. Kg1 {[%clk 0:01:29]}  Qg3+ {[%clk 0:00:06]} 1/2-1/2


[Site "https://www.chess.com"]

[Event "Titled Tuesday Blitz July 11 Early 2023"]
[White "Ncatt"]
[Black "Shturman, Arseniy"]
[BlackFideId "34275797"]
[WhiteElo "2388"]
[BlackElo "2530"]
[Result "1-0"]
[Round "10"]
[TimeControl "180+2"]
[Date "2023.07.11"]
[WhiteClock "0:00:52"]
[BlackClock "0:00:13"]
[Board "100"]

1. e4 {[%clk 0:03:00]}  c5 {[%clk 0:02:59]} 2. Nf3 {[%clk 0:03:01]}  d6 {[%clk 0:02:59]} 3. d4 {[%clk 0:03:01]}  cxd4 {[%clk 0:03:00]} 4. Nxd4 {[%clk 0:03:02]}  Nf6 {[%clk 0:03:01]} 5. Nc3 {[%clk 0:03:03]}  e5 {[%clk 0:03:02]} 6. Bb5+ {[%clk 0:02:47]}  Nbd7 {[%clk 0:03:01]} 7. Nf5 {[%clk 0:02:47]}  a6 {[%clk 0:03:00]} 8. Bc4 {[%clk 0:02:43]}  b5 {[%clk 0:02:58]} 9. Bd5 {[%clk 0:02:43]}  Rb8 {[%clk 0:02:55]} 10. Bg5 {[%clk 0:02:42]}  h6 {[%clk 0:02:54]} 11. Bh4 {[%clk 0:02:41]}  g6 {[%clk 0:02:51]} 12. Ne3 {[%clk 0:02:34]}  b4 {[%clk 0:02:50]} 13. Na4 {[%clk 0:02:31]}  Be7 {[%clk 0:02:49]} 14. Bb3 {[%clk 0:02:28]}  Bb7 {[%clk 0:02:05]} 15. f3 {[%clk 0:02:25]}  O-O {[%clk 0:02:03]} 16. O-O {[%clk 0:02:25]}  Bc6 {[%clk 0:02:00]} 17. a3 {[%clk 0:02:20]}  bxa3 {[%clk 0:01:51]} 18. Rxa3 {[%clk 0:02:20]}  d5 {[%clk 0:01:41]} 19. Bxf6 {[%clk 0:01:36]}  Nxf6 {[%clk 0:01:39]} 20. exd5 {[%clk 0:01:36]}  Bxa3 {[%clk 0:01:20]} 21. dxc6 {[%clk 0:01:36]}  Be7 {[%clk 0:01:16]} 22. Qe1 {[%clk 0:01:32]}  Qc7 {[%clk 0:01:07]} 23. Qg3 {[%clk 0:01:31]}  Kg7 {[%clk 0:01:04]} 24. Re1 {[%clk 0:01:08]}  Kh7 {[%clk 0:00:59]} 25. Nc4 {[%clk 0:01:02]}  Qxc6 {[%clk 0:00:54]} 26. Nxe5 {[%clk 0:01:02]}  Bc5+ {[%clk 0:00:35]} 27. Kh1 {[%clk 0:00:58]}  Qb5 {[%clk 0:00:21]} 28. Bxf7 {[%clk 0:00:52]}  Rxf7 {[%clk 0:00:13]} 29. Qxg6+ {[%clk 0:00:52]} 1-0


[Site "https://www.chess.com"]

[Event "Titled Tuesday Blitz July 11 Early 2023"]
[White "Papayan, Oleg"]
[Black "MAHanif"]
[WhiteFideId "4193911"]
[WhiteElo "2522"]
[BlackElo "2386"]
[Result "0-1"]
[Round "10"]
[TimeControl "180+2"]
[Date "2023.07.11"]
[WhiteClock "0:00:00"]
[BlackClock "0:00:25"]
[Board "101"]

1. c4 {[%clk 0:03:00]}  Nf6 {[%clk 0:03:00]} 2. Nc3 {[%clk 0:03:01]}  g6 {[%clk 0:03:01]} 3. g3 {[%clk 0:03:00]}  Bg7 {[%clk 0:03:01]} 4. Bg2 {[%clk 0:03:01]}  c6 {[%clk 0:03:02]} 5. e4 {[%clk 0:02:59]}  d6 {[%clk 0:03:02]} 6. Nge2 {[%clk 0:02:58]}  Be6 {[%clk 0:03:01]} 7. b3 {[%clk 0:02:55]}  O-O {[%clk 0:02:55]} 8. d4 {[%clk 0:02:55]}  c5 {[%clk 0:02:50]} 9. O-O {[%clk 0:02:53]}  cxd4 {[%clk 0:02:50]} 10. Nxd4 {[%clk 0:02:53]}  Bd7 {[%clk 0:02:45]} 11. h3 {[%clk 0:02:29]}  Nc6 {[%clk 0:02:44]} 12. Be3 {[%clk 0:02:26]}  a6 {[%clk 0:02:42]} 13. Qd2 {[%clk 0:02:23]}  Re8 {[%clk 0:02:39]} 14. Rad1 {[%clk 0:02:13]}  Qc7 {[%clk 0:02:36]} 15. Nd5 {[%clk 0:02:12]}  Nxd5 {[%clk 0:02:35]} 16. exd5 {[%clk 0:02:07]}  Nxd4 {[%clk 0:02:22]} 17. Bxd4 {[%clk 0:02:08]}  b5 {[%clk 0:02:19]} 18. Bxg7 {[%clk 0:02:05]}  Kxg7 {[%clk 0:02:18]} 19. Qd4+ {[%clk 0:02:05]}  Kg8 {[%clk 0:02:18]} 20. Rc1 {[%clk 0:01:59]}  bxc4 {[%clk 0:02:18]} 21. Rxc4 {[%clk 0:01:59]}  Qa5 {[%clk 0:02:16]} 22. Qc3 {[%clk 0:01:49]}  Qxc3 {[%clk 0:02:03]} 23. Rxc3 {[%clk 0:01:49]}  Rec8 {[%clk 0:01:56]} 24. Rfc1 {[%clk 0:01:44]}  Rxc3 {[%clk 0:01:54]} 25. Rxc3 {[%clk 0:01:45]}  Rc8 {[%clk 0:01:55]} 26. Rxc8+ {[%clk 0:01:35]}  Bxc8 {[%clk 0:01:55]} 27. b4 {[%clk 0:01:29]}  Kf8 {[%clk 0:01:52]} 28. Kf1 {[%clk 0:01:26]}  Ke8 {[%clk 0:01:48]} 29. Ke2 {[%clk 0:01:26]}  Kd8 {[%clk 0:01:49]} 30. Kd3 {[%clk 0:01:26]}  Kc7 {[%clk 0:01:50]} 31. a4 {[%clk 0:00:58]}  Bd7 {[%clk 0:01:40]} 32. a5 {[%clk 0:00:50]}  e6 {[%clk 0:01:38]} 33. h4 {[%clk 0:00:33]}  e5 {[%clk 0:01:35]} 34. Kc3 {[%clk 0:00:27]}  Bb5 {[%clk 0:01:35]} 35. g4 {[%clk 0:00:25]}  f5 {[%clk 0:01:34]} 36. g5 {[%clk 0:00:24]}  Kd7 {[%clk 0:01:31]} 37. Bf3 {[%clk 0:00:22]}  e4 {[%clk 0:01:11]} 38. Bd1 {[%clk 0:00:20]}  Ke7 {[%clk 0:01:03]} 39. h5 {[%clk 0:00:21]}  gxh5 {[%clk 0:00:56]} 40. Bxh5 {[%clk 0:00:21]}  Bf1 {[%clk 0:00:44]} 41. Kd4 {[%clk 0:00:11]}  Bb5 {[%clk 0:00:39]} 42. Bd1 {[%clk 0:00:07]}  Kf7 {[%clk 0:00:37]} 43. Bh5+ {[%clk 0:00:08]}  Kg7 {[%clk 0:00:37]} 44. Ke3 {[%clk 0:00:08]}  Bc4 {[%clk 0:00:33]} 45. Kf4 {[%clk 0:00:06]}  Bd3 {[%clk 0:00:28]} 46. Kxf5 {[%clk 0:00:03]}  e3+ {[%clk 0:00:28]} 47. Ke6 {[%clk 0:00:04]}  exf2 {[%clk 0:00:25]} 48. Be2 {[%clk 0:00:00]}  Bxe2 {[%clk 0:00:25]} 0-1


[Site "https://www.chess.com"]

[Event "Titled Tuesday Blitz July 11 Early 2023"]
[White "Novikov, Evgenij"]
[Black "Harriott, Tyrell"]
[WhiteFideId "4125380"]
[BlackFideId "2086484"]
[WhiteElo "2487"]
[BlackElo "2378"]
[Result "1-0"]
[Round "10"]
[TimeControl "180+2"]
[Date "2023.07.11"]
[WhiteClock "0:00:03"]
[BlackClock "0:00:21"]
[Board "104"]

1. e4 {[%clk 0:02:59]}  d5 {[%clk 0:02:56]} 2. exd5 {[%clk 0:02:58]}  Nf6 {[%clk 0:02:56]} 3. d4 {[%clk 0:02:56]}  Qxd5 {[%clk 0:02:55]} 4. Nc3 {[%clk 0:02:55]}  Qd6 {[%clk 0:02:55]} 5. Nf3 {[%clk 0:02:52]}  a6 {[%clk 0:02:51]} 6. Ne5 {[%clk 0:02:41]}  Nc6 {[%clk 0:02:45]} 7. Nxc6 {[%clk 0:02:33]}  Qxc6 {[%clk 0:02:40]} 8. d5 {[%clk 0:02:27]}  Qb6 {[%clk 0:02:36]} 9. Bc4 {[%clk 0:02:15]}  Bg4 {[%clk 0:02:29]} 10. f3 {[%clk 0:02:10]}  Bf5 {[%clk 0:02:18]} 11. Qe2 {[%clk 0:02:07]}  O-O-O {[%clk 0:02:16]} 12. g4 {[%clk 0:02:02]}  Bg6 {[%clk 0:02:11]} 13. h4 {[%clk 0:01:57]}  h6 {[%clk 0:02:06]} 14. h5 {[%clk 0:01:56]}  Bh7 {[%clk 0:02:06]} 15. Bb3 {[%clk 0:01:53]}  e5 {[%clk 0:01:55]} 16. Be3 {[%clk 0:01:45]}  Bc5 {[%clk 0:01:54]} 17. Na4 {[%clk 0:01:09]}  Qa5+ {[%clk 0:01:43]} 18. Bd2 {[%clk 0:01:08]}  Bb4 {[%clk 0:01:41]} 19. c3 {[%clk 0:01:08]}  Bd6 {[%clk 0:01:33]} 20. a3 {[%clk 0:00:57]}  Qb5 {[%clk 0:01:21]} 21. Qd1 {[%clk 0:00:30]}  Bd3 {[%clk 0:01:12]} 22. c4 {[%clk 0:00:21]}  Bxc4 {[%clk 0:01:11]} 23. Bxc4 {[%clk 0:00:16]}  Qxc4 {[%clk 0:01:12]} 24. Rc1 {[%clk 0:00:15]}  Qxd5 {[%clk 0:01:10]} 25. Nb6+ {[%clk 0:00:15]}  Kb8 {[%clk 0:01:08]} 26. Nxd5 {[%clk 0:00:15]}  Nxd5 {[%clk 0:01:08]} 27. O-O {[%clk 0:00:15]}  b6 {[%clk 0:01:04]} 28. Qe2 {[%clk 0:00:14]}  Kb7 {[%clk 0:01:00]} 29. Qe4 {[%clk 0:00:14]}  c6 {[%clk 0:01:01]} 30. b4 {[%clk 0:00:12]}  Rc8 {[%clk 0:00:57]} 31. Kh1 {[%clk 0:00:11]}  Rhd8 {[%clk 0:00:52]} 32. Be1 {[%clk 0:00:09]}  Nf4 {[%clk 0:00:50]} 33. Bh4 {[%clk 0:00:09]}  f6 {[%clk 0:00:49]} 34. Rfd1 {[%clk 0:00:08]}  b5 {[%clk 0:00:46]} 35. Bg3 {[%clk 0:00:08]}  Nd5 {[%clk 0:00:45]} 36. Rxd5 {[%clk 0:00:07]}  cxd5 {[%clk 0:00:45]} 37. Qxd5+ {[%clk 0:00:07]}  Kb8 {[%clk 0:00:45]} 38. Rxc8+ {[%clk 0:00:07]}  Kxc8 {[%clk 0:00:46]} 39. Qc6+ {[%clk 0:00:06]}  Bc7 {[%clk 0:00:46]} 40. Bf2 {[%clk 0:00:05]}  Rd6 {[%clk 0:00:45]} 41. Qe8+ {[%clk 0:00:04]}  Kb7 {[%clk 0:00:44]} 42. Kg2 {[%clk 0:00:04]}  Rd2 {[%clk 0:00:42]} 43. Kf1 {[%clk 0:00:02]}  Rd1+ {[%clk 0:00:41]} 44. Ke2 {[%clk 0:00:02]}  Rd8 {[%clk 0:00:42]} 45. Qf7 {[%clk 0:00:01]}  e4 {[%clk 0:00:38]} 46. fxe4 {[%clk 0:00:01]}  Rd6 {[%clk 0:00:37]} 47. Qb3 {[%clk 0:00:01]}  Re6 {[%clk 0:00:37]} 48. Qf3 {[%clk 0:00:02]}  Re5 {[%clk 0:00:37]} 49. Kf1 {[%clk 0:00:03]}  Re7 {[%clk 0:00:35]} 50. Bg3 {[%clk 0:00:03]}  Bb6 {[%clk 0:00:34]} 51. e5+ {[%clk 0:00:02]}  Ka7 {[%clk 0:00:34]} 52. exf6 {[%clk 0:00:03]}  gxf6 {[%clk 0:00:34]} 53. Qxf6 {[%clk 0:00:03]}  Rd7 {[%clk 0:00:31]} 54. Qf3 {[%clk 0:00:03]}  Rd2 {[%clk 0:00:24]} 55. Bf2 {[%clk 0:00:02]}  a5 {[%clk 0:00:25]} 56. Bxb6+ {[%clk 0:00:01]}  Kxb6 {[%clk 0:00:26]} 57. Qe3+ {[%clk 0:00:01]}  Rd4 {[%clk 0:00:25]} 58. Qxd4+ {[%clk 0:00:02]}  Ka6 {[%clk 0:00:26]} 59. Qc5 {[%clk 0:00:02]}  a4 {[%clk 0:00:21]} 60. g5 {[%clk 0:00:02]}  hxg5 {[%clk 0:00:21]} 61. Qd6+ {[%clk 0:00:02]}  Kb7 {[%clk 0:00:21]} 62. h6 {[%clk 0:00:03]}  Kc8 {[%clk 0:00:22]} 63. h7 {[%clk 0:00:03]}  Kb7 {[%clk 0:00:23]} 64. h8=Q {[%clk 0:00:03]}  g4 {[%clk 0:00:21]} 65. Qg7+ {[%clk 0:00:03]} 1-0


[Site "https://www.chess.com"]